fUSD/lending_fUSD_20250125
["ID","MTS","AMOUNT","RATE_DAILY","PERIOD"]
[350389455,1737823847842,-500.0,0.00017533,2]
[350389456,1737823847852,-500.0,0.00017533,2]
[350389457,1737823847862,-500.0,0.00017533,2]
[350389458,1737823847872,-500.0,0.00017533,2]
[350389459,1737823847882,-158.1136185,0.00017533,2]
[350389460,1737823847891,-500.0,0.00017533,2]
[350389461,1737823847901,-500.0,0.00017533,2]
[350389462,1737823847911,-500.0,0.00017533,2]
[350389463,1737823847921,-500.0,0.00017533,2]
[350389464,1737823847931,-3916.40600675,0.00017546,2]
[350389465,1737823847940,-637.27419595,0.0001759,2]
[350389466,1737823847950,-420.07932994,0.00017654,2]
[350389467,1737823847959,-185.46,0.00017655,2]
[350389468,1737823847968,-753.65,0.00017669,2]
[350389469,1737823847978,-500.0,0.00017669,2]
[350389470,1737823847988,-500.0,0.00017669,2]
[350389471,1737823847997,-500.0,0.00017669,2]
[350389472,1737823848006,-500.0,0.00017669,2]
[350389473,1737823848016,-500.0,0.0001767,2]
[350389474,1737823848026,-500.0,0.0001767,2]
[350389475,1737823848036,-500.0,0.0001767,2]
[350389476,1737823848045,-1257.06,0.0001767,2]
[350389477,1737823848055,-500.0,0.0001767,2]
[350389478,1737823848065,-500.0,0.0001767,2]
[350389479,1737823848074,-500.0,0.0001767,2]
[350389480,1737823848084,-209.52,0.0001767,2]
[350389481,1737823848094,-228.99,0.0001767,2]
[350389482,1737823848104,-500.0,0.0001767,2]
[350389483,1737823848113,-500.0,0.0001767,2]
[350389484,1737823848123,-500.0,0.0001767,2]
[350389485,1737823848132,-473.42,0.0001767,2]
[350389486,1737823848142,-500.0,0.0001767,2]
[350389487,1737823848152,-500.0,0.0001767,2]
[350389488,1737823848162,-500.0,0.0001767,2]
[350389489,1737823848171,-641.36,0.0001767,2]
[350389490,1737823848181,-213.71582161,0.0001767,2]
[350389491,1737823848191,-500.0,0.0001767,2]
[350389492,1737823848200,-500.0,0.0001767,2]
[350389493,1737823848210,-500.0,0.0001767,2]
[350389494,1737823848220,-500.0,0.0001767,2]
[350389495,1737823848230,-500.0,0.0001767,2]
[350389496,1737823848240,-500.0,0.0001767,2]
[350389497,1737823848250,-500.0,0.0001767,2]
[350389498,1737823848260,-637.27419595,0.00017762,2]
[350389499,1737823848270,-500.0,0.00017806,2]
[350389500,1737823848279,-500.0,0.00017806,2]
[350389501,1737823848288,-500.0,0.00017806,2]
[350389502,1737823848297,-301.0,0.00017806,2]
[350389503,1737823848306,-500.0,0.00017807,2]
[350389504,1737823848316,-500.0,0.00017807,2]
[350389505,1737823848326,-500.0,0.00017807,2]
[350389506,1737823848335,-1257.06,0.00017807,2]
[350389507,1737823848344,-500.0,0.00017807,2]
[350389508,1737823848354,-500.0,0.00017807,2]
[350389509,1737823848365,-500.0,0.00017807,2]
[350389510,1737823848375,-500.0,0.00017807,2]
[350389511,1737823848385,-500.0,0.00017807,2]
[350389512,1737823848394,-500.0,0.00017807,2]
[350389513,1737823848407,-371.53,0.00017807,2]
[350389514,1737823848417,-359.39,0.00017807,2]
[350389515,1737823848426,-500.0,0.00017807,2]
[350389516,1737823848436,-500.0,0.00017807,2]
[350389517,1737823848446,-387.88,0.00017807,2]
[350389518,1737823848456,-500.0,0.00017807,2]
[350389519,1737823848466,-500.0,0.00017807,2]
[350389520,1737823848476,-414.789155,0.00017807,2]
[350389521,1737823848487,-500.0,0.00017807,2]
[350389522,1737823848497,-500.0,0.00017807,2]
[350389523,1737823848507,-300.0,0.000179,6]
[350389524,1737823848517,-637.27419595,0.00017934,2]
[350389525,1737823848528,-500.0,0.00017943,2]
[350389526,1737823848538,-500.0,0.00017943,2]
[350389527,1737823848548,-500.0,0.00017943,2]
[350389528,1737823848558,-500.0,0.00017944,2]
[350389529,1737823848568,-332.75,0.00017944,2]
[350389530,1737823848582,-500.0,0.00017944,2]
[350389531,1737823848592,-1257.06,0.00017944,2]
[350389532,1737823848604,-279.20717972,0.00017944,2]
[350389533,1737823848614,-462.01,0.00017944,2]
[350389534,1737823848624,-500.0,0.00017944,2]
[350389535,1737823848634,-500.0,0.00017944,2]
[350389536,1737823848644,-183.88,0.00017944,2]
[350389537,1737823848653,-500.0,0.00017944,2]
[350389538,1737823848663,-500.0,0.00017944,2]
[350389539,1737823848673,-500.0,0.00017944,2]
[350389540,1737823848683,-500.0,0.00017944,2]
[350389541,1737823848693,-500.0,0.00017944,2]
[350389542,1737823848703,-500.0,0.00017944,2]
[350389543,1737823848713,-500.0,0.00017944,2]
[350389544,1737823848723,-1061.892,0.00018013,2]
[350389545,1737823848734,-201.14,0.0001808,2]
[350389546,1737823848743,-500.0,0.0001808,2]
[350389547,1737823848753,-500.0,0.0001808,2]
[350389548,1737823848763,-500.0,0.00018081,2]
[350389549,1737823848773,-500.0,0.00018081,2]
[350389550,1737823848783,-1257.06,0.00018081,2]
[350389551,1737823848793,-500.0,0.00018081,2]
[350389552,1737823848803,-500.0,0.00018081,2]
[350389553,1737823848813,-500.0,0.00018081,2]
[350389554,1737823848822,-500.0,0.00018081,2]
[350389555,1737823848832,-500.0,0.00018081,2]
[350389556,1737823848842,-312.02,0.00018081,2]
[350389557,1737823848852,-500.0,0.00018081,2]
[350389558,1737823848862,-500.0,0.00018081,2]
[350389559,1737823848872,-500.0,0.00018081,2]
[350389560,1737823848882,-3916.40600675,0.00018083,2]
[350389561,1737823848892,-637.27419595,0.00018107,2]
[350389562,1737823848902,-500.0,0.00018164,2]
[350389563,1737823848912,-420.07932994,0.00018175,2]
[350389564,1737823848922,-500.0,0.00018217,2]
[350389565,1737823848932,-500.0,0.00018217,2]
[350389566,1737823848942,-500.0,0.00018218,2]
[350389567,1737823848951,-500.0,0.00018218,2]
[350389568,1737823848961,-1257.06,0.00018218,2]
[350389569,1737823848971,-500.0,0.00018218,2]
[350389570,1737823848981,-333.71,0.00018218,2]
[350389571,1737823848990,-500.0,0.00018218,2]
[350389572,1737823849000,-500.0,0.00018218,2]
[350389573,1737823849009,-396.07,0.00018218,2]
[350389574,1737823849019,-500.0,0.00018218,2]
[350389575,1737823849029,-500.0,0.00018218,2]
[350389576,1737823849039,-500.0,0.00018218,2]
[350389577,1737823849048,-637.27419595,0.00018279,2]
[350389578,1737823849058,-578.02,0.00018354,2]
[350389579,1737823849069,-500.0,0.00018354,2]
[350389580,1737823849080,-361.56786697,0.00018355,2]
[350389581,1737823849091,-500.0,0.00018355,2]
[350389582,1737823849102,-1257.06,0.00018355,2]
[350389583,1737823849113,-171.58895674,0.00018355,2]
[350389584,1737823849123,-500.0,0.00018355,2]
[350389585,1737823849133,-500.0,0.00018355,2]
[350389586,1737823849143,-500.0,0.00018355,2]
[350389587,1737823849152,-154.49,0.00018355,2]
[350389588,1737823849161,-500.0,0.00018355,2]
[350389589,1737823849172,-1080.27,0.00018386,2]
[350389590,1737823849182,-637.27419595,0.00018452,2]
[350389591,1737823849192,-500.0,0.00018491,2]
[350389592,1737823849311,-500.0,0.00018492,2]
[350389593,1737823849343,-1257.06,0.00018492,2]
[350389594,1737823849354,-435.41,0.00018492,2]
[350389595,1737823849364,-500.0,0.00018492,2]
[350389596,1737823849375,-500.0,0.00018492,2]
[350389597,1737823849385,-555.21,0.00018492,2]
[350389598,1737823849395,-1445.0,0.000185,2]
[350389599,1737823849405,-500.0,0.0001852,2]
[350389600,1737823849417,-500.0,0.0001852,2]
[350389601,1737823849426,-500.0,0.0001852,2]
[350389602,1737823849436,-312.42759697,0.0001852,2]
[350389603,1737823849447,-500.0,0.0001852,2]
[350389604,1737823849456,-272.20746533,0.0001852,2]
[350389605,1737823849466,-500.0,0.0001852,2]
[350389606,1737823849476,-500.0,0.0001852,2]
[350389607,1737823849488,-501.90270688,0.0001852,2]
[350389608,1737823849499,-500.0,0.0001852,2]
[350389609,1737823849509,-500.0,0.0001852,2]
[350389610,1737823849519,-501.98757746,0.0001852,2]
[350389611,1737823849529,-500.0,0.0001852,2]
[350389612,1737823849539,-500.0,0.0001852,2]
[350389613,1737823849548,-500.0,0.0001852,2]
[350389614,1737823849557,-500.0,0.0001852,2]
[350389615,1737823849567,-500.0,0.0001852,2]
[350389616,1737823849576,-500.0,0.0001852,2]
[350389617,1737823849586,-645.11,0.0001852,2]
[350389618,1737823849595,-500.0,0.0001852,2]
[350389619,1737823849605,-500.0,0.0001852,2]
[350389620,1737823849614,-500.42347389,0.0001852,2]
[350389621,1737823849624,-500.0,0.0001852,2]
[350389622,1737823849634,-500.0,0.0001852,2]
[350389623,1737823849644,-502.9425667,0.0001852,2]
[350389624,1737823849654,-500.0,0.0001852,2]
[350389625,1737823849663,-500.0,0.0001852,2]
[350389626,1737823849673,-500.0,0.0001852,2]
[350389627,1737823849683,-500.0,0.0001852,2]
[350389628,1737823849692,-500.0,0.0001852,2]
[350389629,1737823849702,-500.0,0.0001852,2]
[350389630,1737823849711,-500.0,0.0001852,2]
[350389631,1737823849721,-500.0,0.0001852,2]
[350389632,1737823849731,-500.0,0.0001852,2]
[350389633,1737823849740,-503.45803408,0.0001852,2]
[350389634,1737823849750,-445.81062556,0.0001852,2]
[350389635,1737823849760,-500.0,0.0001852,2]
[350389636,1737823849770,-500.0,0.0001852,2]
[350389637,1737823849780,-500.0,0.0001852,2]
[350389638,1737823849790,-500.0,0.0001852,2]
[350389639,1737823849800,-500.0,0.0001852,2]
[350389640,1737823849810,-500.0,0.0001852,2]
[350389641,1737823849819,-500.0,0.0001852,2]
[350389642,1737823849829,-500.0,0.0001852,2]
[350389643,1737823849839,-500.0,0.0001852,2]
[350389644,1737823849848,-500.0,0.0001852,2]
[350389645,1737823849858,-500.0,0.0001852,2]
[350389646,1737823849869,-500.0,0.0001852,2]
[350389647,1737823849878,-500.0,0.0001852,2]
[350389648,1737823849888,-500.0,0.0001852,2]
[350389649,1737823849899,-500.0,0.0001852,2]
[350389650,1737823849911,-500.0,0.0001852,2]
[350389651,1737823849925,-500.0,0.0001852,2]
[350389652,1737823849935,-500.0,0.0001852,2]
[350389653,1737823849948,-500.0,0.0001852,2]
[350389654,1737823849961,-500.0,0.0001852,2]
[350389655,1737823849977,-500.0,0.0001852,2]
[350389656,1737823849986,-500.0,0.0001852,2]
[350389657,1737823849996,-585.38990026,0.0001852,2]
[350389658,1737823850006,-500.0,0.0001852,2]
[350389659,1737823850016,-500.0,0.0001852,2]
[350389660,1737823850025,-500.0,0.0001852,2]
[350389661,1737823850035,-500.0,0.0001852,2]
[350389662,1737823850045,-500.0,0.0001852,2]
[350389663,1737823850054,-500.0,0.0001852,2]
[350389664,1737823850064,-500.0,0.0001852,2]
[350389665,1737823850073,-500.0,0.0001852,2]
[350389666,1737823850083,-500.0,0.0001852,2]
[350389667,1737823850092,-500.0,0.0001852,2]
[350389668,1737823850102,-500.0,0.0001852,2]
[350389669,1737823850112,-500.0,0.0001852,2]
[350389670,1737823850121,-500.0,0.0001852,2]
[350389671,1737823850131,-304.46706092,0.0001852,2]
[350389672,1737823850140,-500.0,0.0001852,2]
[350389673,1737823850150,-500.0,0.0001852,2]
[350389674,1737823850161,-261.32243234,0.0001852,2]
[350389675,1737823850170,-500.0,0.0001852,2]
[350389676,1737823850181,-500.0,0.0001852,2]
[350389677,1737823850190,-500.0,0.0001852,2]
[350389678,1737823850200,-500.0,0.0001852,2]
[350389679,1737823850209,-500.0,0.0001852,2]
[350389680,1737823850218,-334.94933928,0.0001852,2]
[350389681,1737823850229,-500.0,0.0001852,2]
[350389682,1737823850239,-515.19676591,0.0001852,2]
[350389683,1737823850249,-500.0,0.0001852,2]
[350389684,1737823850259,-343.83094029,0.0001852,2]
[350389685,1737823850268,-500.0,0.0001852,2]
[350389686,1737823850278,-502.75531446,0.0001852,2]
[350389687,1737823850287,-500.0,0.0001852,2]
[350389688,1737823850297,-500.0,0.0001852,2]
[350389689,1737823850306,-500.0,0.0001852,2]
[350389690,1737823850316,-500.0,0.0001852,2]
[350389691,1737823850325,-500.0,0.0001852,2]
[350389692,1737823850335,-480.10869901,0.0001852,2]
[350389693,1737823850345,-500.0,0.0001852,2]
[350389694,1737823850356,-537.96,0.0001852,2]
[350389695,1737823850366,-500.0,0.0001852,2]
[350389696,1737823850376,-500.0,0.0001852,2]
[350389697,1737823850385,-168.38688646,0.0001852,2]
[350389698,1737823850395,-500.0,0.0001852,2]
[350389699,1737823850409,-500.0,0.0001852,2]
[350389700,1737823850419,-500.0,0.0001852,2]
[350389701,1737823850428,-500.0,0.0001852,2]
[350389702,1737823850439,-500.0,0.0001852,2]
[350389703,1737823850450,-500.0,0.0001852,2]
[350389704,1737823850460,-500.0,0.0001852,2]
[350389705,1737823850469,-500.0,0.0001852,2]
[350389706,1737823850481,-500.0,0.0001852,2]
[350389707,1737823850492,-519.7265706,0.0001852,2]
[350389708,1737823850502,-500.0,0.0001852,2]
[350389709,1737823850513,-505.52943625,0.0001852,2]
[350389710,1737823850523,-500.0,0.0001852,2]
[350389711,1737823850533,-500.0,0.0001852,2]
[350389712,1737823850543,-502.3203175,0.0001852,2]
[350389713,1737823850553,-469.9937219,0.0001852,2]
[350389714,1737823850562,-500.0,0.0001852,2]
[350389715,1737823850572,-500.0,0.0001852,2]
[350389716,1737823850583,-500.0,0.0001852,2]
[350389717,1737823850593,-500.0,0.0001852,2]
[350389718,1737823850607,-529.24011213,0.0001852,2]
[350389719,1737823850617,-500.0,0.0001852,2]
[350389720,1737823850626,-500.0,0.0001852,2]
[350389721,1737823850637,-500.0,0.0001852,2]
[350389722,1737823850647,-501.30696163,0.00018583,2]
[350389723,1737823850657,-3916.40600675,0.00018619,2]
[350389724,1737823850666,-637.27419595,0.00018624,2]
[350389725,1737823850677,-500.0,0.00018628,2]
[350389726,1737823850686,-500.0,0.00018629,2]
[350389727,1737823850696,-1257.06,0.00018629,2]
[350389728,1737823850705,-175.74,0.00018629,2]
[350389729,1737823850715,-500.0,0.00018629,2]
[350389730,1737823850726,-500.0,0.00018657,2]
[350389731,1737823850735,-500.0,0.00018657,2]
[350389732,1737823850744,-500.0,0.00018657,2]
[350389733,1737823850753,-500.0,0.00018657,2]
[350389734,1737823850763,-500.0,0.00018657,2]
[350389735,1737823850773,-500.0,0.00018657,2]
[350389736,1737823850783,-510.39938825,0.00018657,2]
[350389737,1737823850793,-501.69894397,0.00018657,2]
[350389738,1737823850802,-210.33325295,0.00018657,2]
[350389739,1737823850811,-501.74039251,0.00018657,2]
[350389740,1737823850821,-223.35079271,0.00018657,2]
[350389741,1737823850831,-500.0,0.00018657,2]
[350389742,1737823850840,-500.0,0.00018657,2]
[350389743,1737823850851,-500.0,0.00018657,2]
[350389744,1737823850861,-500.0,0.00018657,2]
[350389745,1737823850870,-500.0,0.00018657,2]
[350389746,1737823850882,-500.0,0.00018657,2]
[350389747,1737823850892,-500.0,0.00018657,2]
[350389748,1737823850901,-443.2603297,0.00018657,2]
[350389749,1737823850911,-500.0,0.00018657,2]
[350389750,1737823850920,-507.29074371,0.00018657,2]
[350389751,1737823850930,-501.20563557,0.00018657,2]
[350389752,1737823850939,-344.7570039,0.00018657,2]
[350389753,1737823850949,-500.0,0.00018657,2]
[350389754,1737823850959,-500.0,0.00018657,2]
[350389755,1737823850970,-500.0,0.00018657,2]
[350389756,1737823850979,-500.0,0.00018657,2]
[350389757,1737823850989,-500.39030307,0.00018657,2]
[350389758,1737823850999,-500.0,0.00018657,2]
[350389759,1737823851009,-568.87758065,0.00018657,2]
[350389760,1737823851019,-500.0,0.00018657,2]
[350389761,1737823851028,-500.0,0.00018657,2]
[350389762,1737823851038,-500.0,0.00018657,2]
[350389763,1737823851048,-500.0,0.00018657,2]
[350389764,1737823851058,-500.0,0.00018657,2]
[350389765,1737823851067,-500.0,0.00018657,2]
[350389766,1737823851077,-500.0,0.00018657,2]
[350389767,1737823851086,-500.0,0.00018657,2]
[350389768,1737823851096,-500.0,0.00018657,2]
[350389769,1737823851108,-500.0,0.00018657,2]
[350389770,1737823851117,-500.0,0.00018657,2]
[350389771,1737823851127,-500.0,0.00018657,2]
[350389772,1737823851137,-500.0,0.00018657,2]
[350389773,1737823851147,-500.0,0.00018657,2]
[350389774,1737823851156,-500.0,0.00018657,2]
[350389775,1737823851166,-500.0,0.00018657,2]
[350389776,1737823851175,-500.0,0.00018657,2]
[350389777,1737823851185,-500.0,0.00018657,2]
[350389778,1737823851194,-500.0,0.00018657,2]
[350389779,1737823851204,-500.0,0.00018657,2]
[350389780,1737823851213,-537.96,0.00018657,2]
[350389781,1737823851223,-500.0,0.00018657,2]
[350389782,1737823851233,-500.0,0.00018657,2]
[350389783,1737823851243,-500.0,0.00018657,2]
[350389784,1737823851254,-500.0,0.00018657,2]
[350389785,1737823851264,-500.0,0.00018657,2]
[350389786,1737823851273,-500.0,0.00018657,2]
[350389787,1737823851284,-500.0,0.00018657,2]
[350389788,1737823851294,-500.0,0.00018657,2]
[350389789,1737823851303,-500.0,0.00018657,2]
[350389790,1737823851313,-500.0,0.00018657,2]
[350389791,1737823851323,-500.0,0.00018657,2]
[350389792,1737823851332,-500.0,0.00018657,2]
[350389793,1737823851341,-500.0,0.00018657,2]
[350389794,1737823851352,-500.0,0.00018657,2]
[350389795,1737823851362,-500.0,0.00018657,2]
[350389796,1737823851372,-500.0,0.00018657,2]
[350389797,1737823851382,-420.07932994,0.00018696,2]
[350389798,1737823851392,-5000.0,0.00018748,2]
[350389799,1737823851402,-500.0,0.00018765,2]
[350389800,1737823851416,-500.0,0.00018766,2]
[350389801,1737823851426,-1257.06,0.00018766,2]
[350389802,1737823851435,-500.0,0.00018766,2]
[350389803,1737823851445,-500.0,0.00018794,2]
[350389804,1737823851454,-500.0,0.00018794,2]
[350389805,1737823851464,-500.0,0.00018794,2]
[350389806,1737823851473,-500.0,0.00018794,2]
[350389807,1737823851484,-500.0,0.00018794,2]
[350389808,1737823851493,-500.0,0.00018794,2]
[350389809,1737823851503,-500.0,0.00018794,2]
[350389810,1737823851512,-621.53,0.00018794,2]
[350389811,1737823851522,-572.81,0.00018794,2]
[350389812,1737823851532,-500.0,0.00018794,2]
[350389813,1737823851542,-500.0,0.00018794,2]
[350389814,1737823851551,-500.0,0.00018794,2]
[350389815,1737823851561,-500.0,0.00018794,2]
[350389816,1737823851571,-500.0,0.00018794,2]
[350389817,1737823851580,-500.0,0.00018794,2]
[350389818,1737823851590,-500.0,0.00018794,2]
[350389819,1737823851599,-500.0,0.00018794,2]
[350389820,1737823851608,-500.0,0.00018794,2]
[350389821,1737823851618,-500.0,0.00018794,2]
[350389822,1737823851627,-500.0,0.00018794,2]
[350389823,1737823851637,-500.0,0.00018794,2]
[350389824,1737823851646,-500.0,0.00018794,2]
[350389825,1737823851657,-500.0,0.00018794,2]
[350389826,1737823851666,-500.0,0.00018794,2]
[350389827,1737823851676,-537.96,0.00018794,2]
[350389828,1737823851685,-500.0,0.00018794,2]
[350389829,1737823851695,-500.0,0.00018794,2]
[350389830,1737823851705,-361.34,0.00018794,2]
[350389831,1737823851715,-500.0,0.00018794,2]
[350389832,1737823851725,-223.99435423,0.00018794,2]
[350389833,1737823851735,-500.0,0.00018794,2]
[350389834,1737823851744,-500.0,0.00018794,2]
[350389835,1737823851754,-500.0,0.00018794,2]
[350389836,1737823851764,-500.0,0.00018794,2]
[350389837,1737823851773,-500.0,0.00018794,2]
[350389838,1737823851783,-500.0,0.00018794,2]
[350389839,1737823851794,-500.0,0.00018794,2]
[350389840,1737823851838,-500.0,0.00018794,2]
[350389841,1737823851847,-500.0,0.00018794,2]
[350389842,1737823851857,-637.27419595,0.00018797,2]
[350389843,1737823851866,-356.84,0.00018902,2]
[350389844,1737823851876,-420.64,0.00018903,2]
[350389845,1737823851885,-1257.06,0.00018903,2]
[350389846,1737823851895,-500.0,0.00018903,2]
[350389847,1737823851906,-500.0,0.00018931,2]
[350389848,1737823851915,-500.0,0.00018931,2]
[350389849,1737823851925,-537.96,0.00018931,2]
[350389850,1737823851935,-500.0,0.00018931,2]
[350389851,1737823851945,-645.14,0.00018931,2]
[350389852,1737823851955,-515.6,0.00018931,2]
[350389853,1737823851965,-500.0,0.00018931,2]
[350389854,1737823851974,-637.27419595,0.00018969,2]
[350389855,1737823851983,-650.0,0.00019,2]
[350389856,1737823851992,-164.60074974,0.00019012,2]
[350389857,1737823852002,-1257.06,0.0001904,2]
[350389858,1737823852011,-500.0,0.0001904,2]
[350389859,1737823852020,-537.96,0.00019068,2]
[350389860,1737823852030,-500.0,0.00019068,2]
[350389861,1737823852040,-465.75,0.00019068,2]
[350389862,1737823852049,-157.30161,0.00019073,2]
[350389863,1737823852058,-753.65,0.00019111,2]
[350389864,1737823852068,-15880.5788,0.00019112,2]
[350389865,1737823852077,-14029.8004,0.00019112,2]
[350389866,1737823852087,-162.18,0.0001912,2]
[350389867,1737823852096,-637.27419595,0.00019141,2]
[350389868,1737823852106,-3916.40600675,0.00019155,2]
[350389869,1737823852116,-170.31,0.00019175,2]
[350389870,1737823852125,-1257.06,0.00019177,2]
[350389871,1737823852135,-232.25,0.00019177,2]
[350389872,1737823852144,-537.96,0.00019205,2]
[350389873,1737823852154,-500.0,0.00019205,2]
[350389874,1737823852163,-75640.48992554,0.00019212,2]
[350389875,1737823852172,-420.07932994,0.00019216,2]
[350389876,1737823852182,-2108.0,0.00019278,2]
[350389877,1737823852191,-637.27419595,0.00019314,2]
[350389878,1737823852200,-1257.06,0.00019314,2]
[350389879,1737823852210,-1000.0,0.00019318,2]
[350389880,1737823852219,-537.96,0.00019342,2]
[350389881,1737823852230,-500.0,0.00019342,2]
[350389882,1737823852239,-1257.06,0.00019451,2]
[350389883,1737823852249,-537.96,0.00019479,2]
[350389884,1737823852258,-500.0,0.00019479,2]
[350389885,1737823852267,-637.27419595,0.00019486,2]
[350389886,1737823852276,-164.60074969,0.00019493,2]
[350389887,1737823852287,-1002.177,0.00019499,2]
[350389888,1737823852296,-3905.0,0.000195,2]
[350389889,1737823852306,-150.0,0.000195,2]
[350389890,1737823852315,-1106.0,0.000195,2]
[350389891,1737823852325,-1257.06,0.00019588,2]
[350389892,1737823852335,-537.96,0.00019616,2]
[350389893,1737823852344,-500.0,0.00019616,2]
[350389894,1737823852355,-637.27419595,0.00019659,2]
[350389895,1737823852364,-3916.40600675,0.00019691,2]
[350389896,1737823852374,-1257.06,0.00019725,2]
[350389897,1737823852383,-420.07932994,0.00019737,2]
[350389898,1737823852394,-537.96,0.00019753,2]
[350389899,1737823852407,-500.0,0.00019753,2]
[350389900,1737823852416,-152.0,0.0001978,3]
[350389901,1737823852426,-637.27419595,0.00019831,2]
[350389902,1737823852437,-500.0,0.00019835,2]
[350389903,1737823852447,-179.59117282,0.00019852,2]
[350389904,1737823852458,-1257.06,0.00019862,2]
[350389905,1737823852468,-537.96,0.0001989,2]
[350389906,1737823852479,-500.0,0.0001989,2]
[350389907,1737823852488,-700.0,0.000199,7]
[350389908,1737823852498,-164.60074969,0.00019975,2]
[350389909,1737823852507,-1257.06,0.00019999,2]
[350389910,1737823852516,-490.5435461,0.0002,20]
[350389911,1737823852525,-2319.63897911,0.0002,2]
[350389912,1737823852535,-2584.07794,0.0002,2]
[350389913,1737823852544,-637.27419595,0.00020003,2]
[350389914,1737823852553,-171.94,0.0002002,2]
[350389915,1737823852563,-537.96,0.00020027,2]
[350389916,1737823852572,-184.77,0.00020027,2]
[350389917,1737823852582,-1257.06,0.00020136,2]
[350389918,1737823852592,-537.96,0.00020164,2]
[350389919,1737823852602,-637.27419595,0.00020176,2]
[350389920,1737823852611,-3916.40600675,0.00020228,2]
[350389921,1737823852621,-150.0,0.00020234,2]
[350389922,1737823852630,-420.07932994,0.00020258,2]
[350389923,1737823852640,-203.0,0.0002027,2]
[350389924,1737823852650,-1257.06,0.00020273,2]
[350389925,1737823852659,-150.0,0.00020291,2]
[350389926,1737823852669,-537.96,0.00020301,2]
[350389927,1737823852678,-500.0,0.00020331,2]
[350389928,1737823852687,-1000.0,0.00020331,2]
[350389929,1737823852696,-637.27419595,0.00020348,2]
[350389930,1737823852705,-500.0,0.00020356,2]
[350389931,1737823852715,-1257.16236664,0.0002041,2]
[350389932,1737823852724,-537.96,0.00020438,2]
[350389933,1737823852734,-164.60074969,0.00020456,2]
[350389934,1737823852743,-150.0,0.00020477,2]
[350389935,1737823852752,-753.65,0.00020499,2]
[350389936,1737823852762,-3000.0,0.000205,2]
[350389937,1737823852771,-150.0,0.00020504,2]
[350389938,1737823852780,-152.0,0.00020516,4]
[350389939,1737823852789,-637.27419595,0.00020521,2]
[350389940,1737823852798,-1502.3458337,0.00020531,2]
[350389941,1737823852808,-209649.73976543,0.00020567,2]
[350389942,1737823852939,-393415.09891335,0.00020567,2]
[350389943,1737823852949,-537.96,0.00020575,2]
[350389944,1737823852959,-1000.0,0.000206,3]
[350389945,1737823852968,-1000.0,0.000206,3]
[350389946,1737823852977,-1009.0,0.000206,2]
[350389947,1737823852986,-1000.0,0.000206,2]
[350389948,1737823852996,-1000.0,0.000206,7]
[350389949,1737823853006,-203.0,0.0002061,2]
[350389950,1737823853015,-166.0,0.0002065,2]
[350389951,1737823853025,-1080.27,0.0002065,2]
[350389952,1737823853035,-150.0,0.00020652,2]
[350389953,1737823853045,-150.0,0.00020653,2]
[350389954,1737823853054,-150.0,0.00020684,2]